bitfinex/quotes_SOLUSD_20250602
["timestamp","ask_amount","ask_price","bid_price","bid_amount"]
[1748835004465,40.3,155.96,155.93,20.90280773]
[1748835004928,10.82,155.98,155.94,14.48976838]
[1748835005151,51.1,155.98,155.95,14.48976838]
[1748835005559,10.82,155.98,155.95,14.48976838]
[1748835005741,10.82,155.98,155.97,14.48976838]
[1748835007339,10.82,155.98,155.97,20.90125776]
[1748835010362,10.82,155.98,155.96,14.48976838]
[1748835011459,10.82,155.98,155.97,6.41148938]
[1748835014043,10.82,155.98,155.95,20.9017507]
[1748835014254,25.30976838,155.98,155.95,6.41198232]
[1748835014451,10.82,155.98,155.95,20.9017507]
[1748835015977,10.82,155.98,155.96,14.48976838]
[1748835016340,51.08,155.98,155.96,14.48976838]
[1748835017075,10.82,155.98,155.97,20.90125776]
[1748835020176,10.82,155.98,155.93,6.41313409]
[1748835020470,25.30976838,155.98,155.94,14.48976838]
[1748835020776,14.48976838,155.96,155.93,6.41313409]
[1748835020948,54.74976838,155.95,155.93,6.41313409]
[1748835022356,54.74976838,155.95,155.89,48.45074014]
[1748835022667,54.74976838,155.95,155.91,14.48976838]
[1748835022869,54.74976838,155.95,155.9,14.48976838]
[1748835023380,54.74976838,155.95,155.91,14.48976838]
[1748835023673,14.48976838,155.94,155.9,14.48976838]
[1748835023846,14.48976838,155.92,155.89,22.45074014]
[1748835024046,14.48976838,155.93,155.89,36.94050852]
[1748835024470,14.48976838,155.93,155.89,6.41477965]
[1748835024648,10.78,155.92,155.89,6.41477965]
[1748835024846,40.24,155.91,155.89,6.41477965]
[1748835027157,40.24,155.91,155.89,14.48976838]
[1748835027376,10.78,155.92,155.9,14.48976838]
[1748835027582,10.76,155.96,155.91,14.48976838]
[1748835027762,10.76,155.96,155.95,14.48976838]
[1748835027763,51.0,155.96,155.95,14.48976838]
[1748835028275,10.76,155.96,155.95,14.48976838]
[1748835028520,40.24,155.98,155.95,14.48976838]
[1748835028680,40.24,155.98,155.97,14.48976838]
[1748835029690,40.24,155.98,155.97,20.90125776]
[1748835029975,40.24,155.99,155.97,20.90125776]
[1748835032776,10.76,156.0,155.97,20.90125776]
[1748835032986,40.24,155.99,155.97,20.90125776]
[1748835035579,40.22,155.99,155.98,14.48976838]
[1748835036981,40.22,155.99,155.98,20.90084672]
[1748835037282,50.98,156.0,155.98,20.90084672]
[1748835038079,10.76,156.0,155.98,20.90084672]
[1748835038297,50.98,156.0,155.98,20.90084672]
[1748835040164,50.98,156.0,155.99,20.90043573]
[1748835042383,10.76,156.0,155.99,20.90043573]
[1748835042686,10.76,156.04,155.99,36.9271041]
[1748835042886,40.22,156.03,156.01,14.48976838]
[1748835043769,40.22,156.03,156.02,6.40943468]
[1748835045363,40.2,156.03,156.02,6.40943468]
[1748835045572,40.2,156.03,156.02,20.89920306]
[1748835046172,10.76,156.04,156.02,20.89920306]
[1748835046398,10.76,156.04,156.03,14.48976838]
[1748835046694,40.2,156.06,156.03,14.48976838]
[1748835046876,40.2,156.06,156.02,22.43302139]
[1748835046877,22.58134848,156.07,156.05,14.48976838]
[1748835047065,40.2,156.06,156.05,14.48976838]
[1748835047476,40.2,156.07,156.05,14.48976838]
[1748835047682,40.2,156.07,156.06,14.48976838]
[1748835047895,103.06,156.08,156.06,14.48976838]
[1748835048069,40.2,156.07,156.06,14.48976838]
[1748835048269,6.0814,156.13,156.06,20.89756025]
[1748835048465,50.94,156.14,156.12,14.48976838]
[1748835048691,50.94,156.14,156.09,26.0]
[1748835048692,65.42976838,156.14,156.1,14.48976838]
[1748835049078,65.42976838,156.14,156.09,14.48976838]
[1748835049274,14.48976838,156.13,156.09,14.48976838]
[1748835050184,14.48976838,156.13,156.08,14.48976838]
[1748835050390,14.48976838,156.13,156.09,6.40656031]
[1748835050776,14.48976838,156.13,156.09,20.89632869]
[1748835051473,14.48976838,156.12,156.09,6.40656031]
[1748835051674,40.18,156.11,156.09,6.40656031]
[1748835052797,40.18,156.11,156.1,14.48976838]
[1748835053180,25.22976838,156.14,156.1,14.48976838]
[1748835053385,40.18,156.12,156.1,14.48976838]
[1748835053896,54.66976838,156.12,156.08,6.40687405]
[1748835054092,40.18,156.12,156.08,6.40687405]
[1748835054288,40.18,156.12,156.08,20.89664243]
[1748835056781,54.66976838,156.12,156.08,6.40687405]
[1748835057183,54.66976838,156.12,156.08,20.89664243]
[1748835057184,40.18,156.12,156.08,20.89664243]
[1748835057386,40.18,156.12,156.09,14.48976838]
[1748835058091,40.18,156.12,156.08,20.89664243]
[1748835058289,54.66976838,156.12,156.08,20.89664243]
[1748835058690,54.66976838,156.12,156.08,6.40687405]
[1748835059085,14.48976838,156.1,156.06,14.48976838]
[1748835059391,40.16,156.09,156.06,14.48976838]
[1748835059806,14.48976838,156.07,156.03,22.43103379]
[1748835059987,54.64976838,156.06,156.03,6.4090239]
[1748835060514,14.48976838,156.04,155.98,6.41107834]
[1748835060690,6.40748096,156.07,155.99,14.48976838]
[1748835060691,54.64976838,156.03,155.99,14.48976838]
[1748835060896,14.48976838,156.01,155.98,6.41107834]
[1748835061108,54.64976838,156.0,155.98,6.41107834]
[1748835062179,54.64976838,156.0,155.97,6.41148938]
[1748835064215,14.48976838,155.99,155.96,6.41179481]
[1748835065104,54.64976838,156.0,155.96,20.90156319]
[1748835066300,40.16,156.0,155.96,20.90156319]
[1748835067194,54.64976838,156.0,155.96,20.90156319]
[1748835067385,54.64976838,156.0,155.96,6.41179481]
[1748835068295,54.64976838,156.0,155.96,20.90156319]
[1748835069496,54.64976838,156.0,155.95,20.90208001]
[1748835070190,54.64976838,156.0,155.96,14.48976838]
[1748835070687,40.16,156.0,155.97,14.48976838]
[1748835070989,10.72,156.02,155.99,14.48976838]
[1748835071193,40.16,156.01,156.0,14.48976838]
[1748835071382,10.72,156.02,156.0,14.48976838]
[1748835071587,50.88,156.02,156.01,6.40984552]
[1748835071997,50.88,156.02,155.97,42.02819298]
[1748835071998,71.77927066,156.02,155.97,14.48976838]
[1748835072198,14.48976838,156.0,155.96,14.48976838]
[1748835072410,40.16,155.99,155.97,14.48976838]
[1748835072993,40.16,155.99,155.96,14.48976838]
[1748835073585,40.16,155.99,155.97,6.41148938]
[1748835074188,40.16,155.99,155.97,20.90125776]
[1748835074713,40.16,155.99,155.98,14.48976838]
[1748835075207,40.16,155.99,155.97,20.90125776]
[1748835075715,40.16,155.99,155.98,14.48976838]
[1748835075893,25.20976838,156.02,155.98,14.48976838]
[1748835076093,40.14,156.01,155.98,14.48976838]
[1748835076500,40.14,156.01,155.97,14.48976838]
[1748835076713,54.62976838,156.01,155.97,14.48976838]
[1748835076894,40.14,156.01,155.97,14.48976838]
[1748835077094,54.62976838,156.01,155.97,14.48976838]
[1748835077813,54.62976838,156.01,155.98,6.41107834]
[1748835078619,40.14,156.01,155.98,6.41107834]
[1748835079386,10.72,156.02,156.0,14.48976838]
[1748835079586,40.14,156.01,155.99,14.48976838]
[1748835079804,40.14,156.01,156.0,6.41025641]
[1748835080296,10.72,156.02,156.0,6.41025641]
[1748835080500,50.86,156.02,156.0,20.90002479]
[1748835082000,50.86,156.02,156.0,6.41025641]
[1748835084499,10.72,156.02,156.0,20.90002479]
[1748835084693,50.86,156.02,156.0,20.90002479]
[1748835086830,12.2986,156.06,156.01,14.48976838]
[1748835087023,40.14,156.05,156.03,14.48976838]
[1748835087199,10.68,156.06,156.03,14.48976838]
[1748835087404,40.14,156.05,156.03,14.48976838]
[1748835087623,40.14,156.05,156.04,14.48976838]
[1748835087809,10.68,156.06,156.04,14.48976838]
[1748835088013,10.68,156.06,156.05,14.48976838]
[1748835088426,10.68,156.06,156.05,20.89797087]
[1748835088929,10.68,156.06,156.05,6.40820249]
[1748835089221,10.68,156.06,156.04,6.40853533]
[1748835089391,40.12,156.05,156.04,6.40853533]
[1748835091119,40.12,156.05,156.01,26.0]
[1748835091120,54.60976838,156.05,156.02,6.40943468]
[1748835092234,54.60976838,156.05,156.01,6.40969263]
[1748835092235,14.48976838,156.04,156.01,6.40969263]
[1748835092721,54.60976838,156.05,156.01,20.89946101]
[1748835093211,14.48976838,156.04,156.0,20.89994452]
[1748835093416,14.48976838,156.04,156.0,6.41017614]
[1748835093815,54.60976838,156.05,156.0,20.89994452]
[1748835094607,54.60976838,156.05,156.0,6.41017614]
[1748835094810,40.12,156.05,156.0,6.41017614]
[1748835095025,14.48976838,156.04,156.0,20.89994452]
[1748835095408,14.48976838,156.01,155.95,22.44258665]
[1748835095612,54.60976838,156.0,155.96,14.48976838]
[1748835095822,40.12,155.99,155.95,62.93235503]
[1748835096047,40.12,155.99,155.95,36.93235503]
[1748835096432,40.12,155.99,155.96,14.48976838]
[1748835096708,40.12,155.99,155.95,16.03027502]
[1748835096941,40.12,155.99,155.96,14.48976838]
[1748835097111,40.12,155.99,155.95,16.03027502]
[1748835097310,40.12,155.99,155.96,14.48976838]
[1748835098028,54.60976838,155.99,155.94,40.48976838]
[1748835098242,14.48976838,155.98,155.93,20.90290247]
[1748835099421,54.60976838,155.99,155.94,14.48976838]
[1748835099817,40.12,155.99,155.95,14.48976838]
[1748835101428,40.12,155.99,155.96,6.41190048]
[1748835102926,10.68,156.0,155.98,14.48976838]
[1748835103121,40.12,155.99,155.98,14.48976838]
[1748835103850,40.12,155.99,155.97,14.48976838]
[1748835104813,10.68,156.0,155.98,14.48976838]
[1748835105010,10.68,156.0,155.99,14.48976838]
[1748835106143,10.68,156.0,155.99,20.90043573]
[1748835108128,10.68,156.0,155.98,20.90076445]
[1748835108322,10.68,156.0,155.98,6.41099607]
[1748835109533,10.68,156.0,155.97,6.41148938]
[1748835110938,10.68,156.0,155.97,20.90125776]
[1748835111845,10.68,156.0,155.98,14.48976838]
[1748835113741,10.68,156.0,155.99,6.41066735]
[1748835116939,10.68,156.0,155.99,20.90043573]
[1748835118577,10.68,156.0,155.99,6.41066735]
[1748835118725,10.68,156.0,155.99,20.90043573]
[1748835118932,10.68,156.0,155.99,6.41066735]
[1748835119336,10.68,156.0,155.99,20.90043573]
[1748835121956,10.68,156.0,155.95,6.41231163]
[1748835122326,10.68,156.0,155.96,14.48976838]
[1748835122654,10.68,156.0,155.97,14.48976838]
[1748835123061,40.08,156.02,155.97,14.48976838]
[1748835123238,50.74,156.04,156.01,14.48976838]
[1748835123559,50.74,156.04,156.02,6.40903314]
[1748835124433,10.66,156.04,156.03,14.48976838]
[1748835126162,10.66,156.04,156.03,20.89879228]
[1748835127851,148.9,156.09,156.03,36.92135204]
[1748835128059,10.66,156.09,156.06,14.48976838]
[1748835128254,10.66,156.09,156.07,20.89714968]
[1748835128440,40.08,156.08,156.07,20.89714968]
[1748835129365,10.66,156.09,156.07,20.89714968]
[1748835129541,40.08,156.08,156.07,20.89714968]
[1748835130558,40.08,156.08,156.05,14.48976838]
[1748835130759,40.08,156.08,156.02,16.02282076]
[1748835130760,14.48976838,156.07,156.02,14.48976838]
[1748835131165,14.48976838,156.06,156.01,20.8996139]
[1748835131346,14.48976838,156.06,156.02,14.48976838]
[1748835132174,14.48976838,156.07,156.03,6.4090239]
[1748835132563,54.56976838,156.08,156.03,20.89879228]
[1748835133594,54.56976838,156.08,156.04,14.48976838]
[1748835133950,54.56976838,156.08,156.05,6.40820249]
[1748835134145,10.66,156.09,156.06,14.48976838]
[1748835134347,40.06,156.08,156.06,14.48976838]
[1748835134566,40.06,156.08,156.05,20.89797087]
[1748835136177,25.14976838,156.09,156.05,20.89797087]
[1748835136470,40.06,156.08,156.06,14.48976838]
[1748835138265,40.06,156.08,156.05,6.40820249]
[1748835138474,40.06,156.08,156.06,14.48976838]
[1748835139367,40.06,156.07,156.06,20.89734363]
[1748835141556,10.66,156.09,156.06,6.40757525]
[1748835141773,40.04,156.08,156.06,6.40757525]
[1748835142349,40.04,156.08,156.07,14.48976838]
[1748835143478,40.04,156.08,156.07,20.89714968]
[1748835144279,10.66,156.09,156.07,20.89714968]
[1748835144570,50.7,156.09,156.08,14.48976838]
[1748835144770,10.66,156.09,156.08,14.48976838]
[1748835145575,10.66,156.09,156.08,20.89673916]
[1748835146352,50.7,156.09,156.07,6.40722185]
[1748835146875,50.7,156.09,156.07,20.89699023]
[1748835147052,50.7,156.09,156.08,14.48976838]
[1748835147484,50.7,156.09,156.08,20.89673916]
[1748835147667,10.66,156.09,156.08,20.89673916]
[1748835150291,10.66,156.09,156.03,6.4090239]
[1748835150473,40.04,156.08,156.06,14.48976838]
[1748835151383,40.04,156.08,156.07,14.48976838]
[1748835152487,40.04,156.08,156.07,20.89714968]
[1748835153393,40.04,156.08,156.03,42.02255976]
[1748835153679,14.48976838,156.07,156.04,6.40861317]
[1748835153884,46.3004,156.08,156.04,6.40861317]
[1748835154065,60.79016838,156.08,156.04,20.89838155]
[1748835154490,46.3004,156.08,156.05,14.48976838]
[1748835154799,40.04,156.08,156.06,14.48976838]
[1748835155585,40.04,156.08,156.05,14.48976838]
[1748835156793,40.04,156.08,156.06,6.40779187]
[1748835157783,54.52976838,156.08,156.0,26.0]
[1748835157987,14.48976838,156.07,156.02,14.48976838]
[1748835158569,14.48976838,156.07,156.03,20.89879228]
[1748835159375,40.04,156.08,156.03,20.89879228]
[1748835159579,14.48976838,156.07,156.03,20.89879228]
[1748835161700,40.04,156.08,156.04,14.48976838]
[1748835162065,40.04,156.08,156.0,26.0]
[1748835162066,203.42976838,156.08,156.0,26.0]
[1748835162375,14.48976838,156.06,156.02,14.48976838]
[1748835162688,203.42976838,156.08,156.04,14.48976838]
[1748835162892,40.02,156.07,156.04,14.48976838]
[1748835163291,40.02,156.07,156.05,14.48976838]
[1748835163477,40.02,156.07,156.06,14.48976838]
[1748835164191,40.02,156.07,156.05,14.48976838]
[1748835164495,40.02,156.07,156.06,14.48976838]
[1748835164991,40.02,156.07,156.06,20.89756025]
[1748835165200,40.02,156.07,156.06,6.40779187]
[1748835166072,40.02,156.07,156.05,6.40810049]
[1748835167799,40.02,156.07,156.04,6.40861317]
[1748835168589,54.50976838,156.07,156.04,6.40861317]
[1748835168782,40.02,156.07,156.04,20.89838155]
[1748835169785,40.02,156.07,156.01,6.40984552]
[1748835169997,40.02,156.07,156.01,20.8996139]
[1748835169998,14.48976838,156.06,156.01,20.8996139]
[1748835170173,14.48976838,156.02,155.98,6.41107834]
[1748835170376,40.0,156.01,155.98,6.41107834]
[1748835171300,54.48976838,156.01,155.97,6.41140482]
[1748835171497,14.48976838,156.0,155.97,6.41140482]
[1748835171886,14.48976838,156.0,155.95,20.90208001]
[1748835172399,14.48976838,156.0,155.96,14.48976838]
[1748835172990,14.48976838,156.0,155.95,20.90208001]
[1748835174694,14.48976838,156.0,155.96,14.48976838]
[1748835175697,14.48976838,156.0,155.95,20.90208001]
[1748835175907,195.30985652,156.01,155.95,6.41231163]
[1748835175908,14.48976838,155.99,155.95,6.41231163]
[1748835176203,14.48976838,155.99,155.95,20.90208001]
[1748835183692,195.2942,156.01,155.96,14.48976838]
[1748835183902,14.48976838,156.0,155.96,14.48976838]
[1748835184118,148.9,156.01,155.99,14.48976838]
[1748835184420,209.7996815,156.01,155.95,6.41231163]
[1748835184597,14.48976838,156.0,155.95,6.41231163]
[1748835184795,14.48976838,156.0,155.95,20.90208001]
[1748835185205,14.48976838,156.0,155.96,14.48976838]
[1748835185704,7.8906,155.99,155.93,14.48976838]
[1748835186014,14.48976838,155.98,155.93,14.48976838]
[1748835186207,40.0,155.97,155.93,14.48976838]
[1748835187089,40.0,155.97,155.94,20.90216477]
[1748835187711,40.0,155.97,155.95,14.48976838]
[1748835188117,40.0,155.97,155.95,20.90198936]
[1748835189496,40.0,155.97,155.96,14.48976838]
[1748835189694,163.38976838,156.01,155.96,14.48976838]
[1748835189695,148.9,156.01,155.96,14.48976838]
[1748835189908,40.0,156.0,155.99,14.48976838]
[1748835190309,148.9,156.01,155.99,20.90043573]
[1748835190510,40.0,156.0,155.99,6.41066735]
[1748835191515,148.9,156.01,155.99,6.41066735]
[1748835191705,188.9,156.01,155.99,6.41066735]
[1748835192422,148.9,156.01,156.0,14.48976838]
[1748835193116,10.64,156.02,156.0,14.48976838]
[1748835193321,10.64,156.02,156.01,14.48976838]
[1748835193524,40.0,156.04,156.01,14.48976838]
[1748835193703,40.0,156.04,156.03,14.48976838]
[1748835193909,102.88,156.06,156.03,14.48976838]
[1748835194115,40.0,156.05,156.02,14.48976838]
[1748835194422,14.48976838,156.04,155.99,30.51643675]
[1748835194822,40.0,156.03,155.99,30.51643675]
[1748835195305,14.48976838,156.04,156.0,20.90002479]
[1748835195507,40.0,156.03,156.0,20.90002479]
[1748835196018,40.0,156.03,156.01,14.48976838]
[1748835196608,40.0,156.03,156.02,6.40943468]
[1748835196807,102.88,156.06,156.02,20.89920306]
[1748835197128,40.0,156.03,156.02,6.40943468]
[1748835197302,102.88,156.06,156.02,6.40943468]
[1748835197502,40.0,156.05,156.02,6.40943468]
[1748835197820,102.88,156.06,156.02,6.40943468]
[1748835198215,10.62,156.06,156.04,14.48976838]
[1748835198430,40.0,156.05,156.02,6.40943468]
[1748835198609,40.0,156.05,156.03,14.48976838]
[1748835198924,40.0,156.05,156.04,6.40861317]
[1748835199933,54.48976838,156.05,156.02,6.4092826]
[1748835200138,14.48976838,156.04,156.01,6.40971585]
[1748835200436,14.48976838,156.03,156.01,6.40971585]
[1748835200606,14.48976838,156.03,156.0,6.41020942]
[1748835201006,14.48976838,156.04,156.0,6.41020942]
[1748835201315,14.48976838,156.04,156.0,20.8999778]
[1748835202705,40.0,156.05,156.0,20.8999778]
[1748835202905,14.48976838,156.04,156.0,20.8999778]
[1748835204347,14.48976838,156.04,156.0,6.41020942]
[1748835205140,163.38976838,156.04,156.0,6.41020942]
[1748835205706,148.9,156.04,156.0,14.48976838]
[1748835205907,163.38976838,156.04,156.0,14.48976838]
[1748835206839,148.9,156.04,156.01,14.48976838]
[1748835207346,148.9,156.04,156.0,14.48976838]
[1748835207830,148.9,156.04,155.98,22.43813612]
[1748835208015,163.38976838,156.04,156.0,14.48976838]
[1748835208339,14.48976838,156.03,155.99,14.48976838]
[1748835210324,163.38976838,156.04,156.0,6.41025641]
[1748835210836,148.9,156.04,156.0,6.41025641]
[1748835211018,14.48976838,156.03,156.0,6.41025641]
[1748835211224,39.98,156.02,156.0,6.41025641]
[1748835212924,14.48976838,156.01,155.95,16.03008494]
[1748835213238,10.6,156.0,155.96,6.41190048]
[1748835213445,10.6,156.0,155.96,20.90166886]
[1748835213734,10.6,156.0,155.97,14.48976838]
[1748835214826,10.6,156.0,155.98,6.41107834]
[1748835215827,25.08976838,156.0,155.94,26.0]
[1748835216018,14.48976838,155.99,155.93,6.41313409]
[1748835216218,39.98,155.98,155.93,6.41313409]
[1748835216538,39.98,155.98,155.95,14.48976838]
[1748835217128,39.98,155.98,155.96,6.41190048]
[1748835218623,39.98,155.98,155.93,22.44596933]
[1748835218837,39.98,155.98,155.95,14.48976838]
[1748835221231,39.98,155.98,155.95,20.90173223]
[1748835222352,39.98,155.98,155.95,6.41196385]
[1748835222830,39.98,155.98,155.95,20.90173223]
[1748835224037,14.48976838,155.97,155.9,1.6078]
[1748835224228,14.48976838,155.95,155.9,6.41436818]
[1748835224427,50.58,155.94,155.91,14.48976838]
[1748835224650,50.58,155.94,155.92,14.48976838]
[1748835225552,50.58,155.94,155.93,14.48976838]
[1748835226150,50.58,155.94,155.93,20.90290247]
[1748835228061,10.6,155.94,155.93,20.90290247]
[1748835228565,10.6,155.94,155.9,22.45028864]
[1748835228767,10.6,155.94,155.92,14.48976838]
[1748835229836,10.6,155.94,155.93,6.41313409]
[1748835230775,10.6,155.94,155.93,20.90290247]
[1748835231342,10.6,155.98,155.93,20.90290247]
[1748835231546,39.98,155.97,155.93,6.41313409]
[1748835231745,39.98,155.97,155.91,20.90372514]
[1748835231746,14.48976838,155.95,155.91,20.90372514]
[1748835232037,14.48976838,155.93,155.9,6.41431274]
[1748835232342,40.08,155.92,155.9,20.90408112]
[1748835235752,40.08,155.92,155.91,14.48976838]
[1748835236866,40.08,155.92,155.9,20.90408112]
[1748835237568,40.08,155.92,155.91,14.48976838]
[1748835237942,40.02,155.94,155.91,14.48976838]
[1748835238268,40.02,155.94,155.93,14.48976838]
[1748835238972,40.02,155.94,155.93,20.90290247]
[1748835239671,40.02,155.94,155.93,6.41313409]
[1748835240045,40.04,155.94,155.93,6.41313409]
[1748835240267,40.04,155.94,155.92,6.41346816]
[1748835240770,40.04,155.94,155.92,20.90323654]
[1748835242446,40.04,155.94,155.92,6.41346816]
[1748835242646,40.04,155.94,155.91,14.48976838]
[1748835243467,40.04,155.94,155.91,20.90334182]
[1748835243972,40.04,155.94,155.92,14.48976838]
[1748835245279,40.04,155.94,155.92,20.90308137]
[1748835247374,40.04,155.94,155.92,6.41331299]
[1748835247572,40.04,155.94,155.92,20.90308137]
[1748835248867,40.04,155.94,155.92,6.41331299]
[1748835249873,54.52976838,155.94,155.9,20.90398286]
[1748835250068,65.14976838,155.94,155.9,20.90398286]
[1748835250782,50.66,155.94,155.91,14.48976838]
[1748835252782,50.66,155.94,155.91,20.90355046]
[1748835253715,50.66,155.94,155.91,6.41378208]
[1748835255894,50.66,155.94,155.88,14.48976838]
[1748835255895,14.48976838,155.92,155.88,14.48976838]
[1748835256083,40.0,155.91,155.89,14.48976838]
[1748835256460,40.0,155.91,155.88,14.48976838]
[1748835256772,40.0,155.91,155.89,14.48976838]
[1748835257886,40.0,155.91,155.9,20.90413656]
[1748835260266,40.0,155.92,155.9,20.90413656]
[1748835262582,10.62,155.94,155.91,14.48976838]
[1748835262782,10.62,155.94,155.93,14.48976838]
[1748835264682,40.0,155.97,155.93,20.90290247]
[1748835264874,40.0,155.97,155.96,14.48976838]
[1748835266202,40.0,155.97,155.96,20.90166886]
[1748835266370,10.62,155.98,155.96,20.90166886]
[1748835266692,10.62,155.98,155.96,6.41190048]
[1748835268098,50.6,155.98,155.96,14.48976838]
[1748835268897,10.62,155.98,155.97,14.48976838]
[1748835269082,50.6,156.02,155.97,14.48976838]
[1748835269285,50.6,156.02,156.0,14.48976838]
[1748835269599,10.62,156.02,156.0,14.48976838]
[1748835269774,10.62,156.02,155.99,14.48976838]
[1748835270105,10.62,156.02,156.0,6.41025641]
[1748835281409,10.62,156.02,156.01,14.48976838]
[1748835281607,39.98,156.03,156.01,14.48976838]
[1748835282583,21.03756838,156.05,156.01,14.48976838]
[1748835282790,39.96,156.04,156.02,6.40943468]
[1748835283802,39.96,156.04,156.01,6.40984552]
[1748835284606,21.03756838,156.05,156.01,6.40984552]
[1748835285000,60.99756838,156.05,156.01,6.40984552]
[1748835285693,60.99756838,156.05,155.97,26.0]
[1748835285890,14.48976838,156.03,155.99,14.48976838]
[1748835286213,14.48976838,156.03,155.97,26.0]
[1748835286214,14.48976838,156.02,155.98,14.48976838]
[1748835286407,14.48976838,156.03,155.98,14.48976838]
[1748835286989,14.48976838,156.03,155.99,6.41066735]
[1748835289719,14.48976838,156.01,155.98,6.41093257]
[1748835290014,14.48976838,156.0,155.98,6.41093257]
[1748835290995,14.48976838,156.0,155.97,6.41148938]
[1748835292015,14.48976838,155.98,155.96,6.41180684]
[1748835292913,14.48976838,155.97,155.92,14.48976838]
[1748835293216,14.48976838,155.96,155.92,14.48976838]
[1748835294008,54.44976838,155.97,155.92,14.48976838]
[1748835294697,54.44976838,155.97,155.93,6.41313409]
[1748835294904,14.48976838,155.96,155.93,6.41313409]
[1748835295202,47.88468992,155.97,155.91,6.41395676]
[1748835295410,14.48976838,155.95,155.91,6.41395676]
[1748835296413,14.48976838,155.94,155.91,6.41395676]
[1748835296606,47.88470529,155.97,155.9,6.41436818]
[1748835296607,14.48976838,155.93,155.9,6.41436818]
[1748835296919,54.44976838,155.93,155.9,6.41436818]
[1748835298519,14.48976838,155.92,155.89,6.41468859]
[1748835299097,14.48976838,155.92,155.88,20.9048699]
[1748835300215,14.48976838,155.9,155.86,6.41601437]
[1748835300409,46.37315203,155.93,155.83,6.41724956]
[1748835300410,14.48976838,155.88,155.83,6.41724956]
[1748835300723,14.48976838,155.87,155.83,20.90701794]
[1748835302723,14.48976838,155.87,155.83,6.41724956]
[1748835302909,14.48976838,155.85,155.82,6.41758702]
[1748835306729,14.48976838,155.85,155.77,20.90948976]
[1748835306730,14.48976838,155.83,155.77,20.90948976]
[1748835306920,14.48976838,155.81,155.77,20.90948976]
[1748835307122,14.48976838,155.82,155.77,20.90948976]
[1748835308614,188.88,155.84,155.78,14.48976838]
[1748835308804,14.48976838,155.82,155.77,20.90948976]
[1748835309009,25.08976838,155.82,155.77,20.90948976]
[1748835310124,14.48976838,155.81,155.77,20.90948976]
[1748835311119,10.6,155.82,155.8,14.48976838]
[1748835311321,148.9,155.84,155.81,14.48976838]
[1748835311521,39.98,155.85,155.82,14.48976838]
[1748835311721,54.46976838,155.85,155.81,14.48976838]
[1748835312816,54.46976838,155.85,155.82,6.4176614]
[1748835313132,14.48976838,155.83,155.78,20.90907766]
[1748835313343,14.48976838,155.82,155.78,20.90907766]
[1748835313544,14.48976838,155.83,155.79,14.48976838]
[1748835313769,39.98,155.83,155.81,14.48976838]
[1748835314116,39.98,155.83,155.8,14.48976838]
[1748835314515,54.46976838,155.83,155.78,22.46758248]
[1748835314738,54.46976838,155.83,155.78,20.90907766]
[1748835314739,14.48976838,155.82,155.78,20.90907766]
[1748835314924,54.46976838,155.83,155.78,20.90907766]
[1748835316043,14.48976838,155.82,155.78,20.90907766]
[1748835316841,54.46976838,155.83,155.78,20.90907766]
[1748835317135,14.48976838,155.81,155.78,6.41930928]
[1748835317935,14.48976838,155.82,155.78,20.90907766]
[1748835318443,62.70706838,155.83,155.78,20.90907766]
[1748835320017,14.48976838,155.82,155.78,20.90907766]
[1748835321640,14.48976838,155.82,155.75,22.4713633]
[1748835321848,14.48976838,155.82,155.77,14.48976838]
[1748835323146,8.2373,155.83,155.8,14.48976838]
[1748835323327,39.98,155.83,155.8,14.48976838]
[1748835323522,39.98,155.83,155.79,14.48976838]
[1748835323844,54.46976838,155.83,155.79,20.90843466]
[1748835324948,14.48976838,155.82,155.79,6.41866628]
[1748835325152,14.48976838,155.8,155.76,6.41979949]
[1748835325360,14.48976838,155.79,155.76,6.41979949]
[1748835325644,54.46976838,155.79,155.76,6.41979949]
[1748835327351,39.98,155.79,155.76,6.41979949]
[1748835328272,14.48976838,155.77,155.72,6.42178268]
[1748835328568,14.48976838,155.74,155.72,6.42178268]
[1748835328926,14.48976838,155.73,155.68,30.54769971]
[1748835329234,14.48976838,155.73,155.69,6.4230201]
[1748835330244,14.48976838,155.73,155.69,20.91278848]